[Event "Israel Youth-ch U12 2025"]
[Site "Rishon Le Zion"]
[Date "2025.04.04"]
[Round "1.2"]
[White "Galmidi, Ester"]
[Black "Sason, Noam"]
[Result "0-1"]
[Annotator "NA"]
[ECO "B23"]
[WhiteElo "1637"]
[BlackElo "2075"]
[PlyCount "64"]
[EventDate "2025.04.03"]
[EventType "swiss"]
[EventCountry "ISR"]
[SourceTitle "playchess.com"]
[Source "ChessBase"]
[SourceQuality "1"]
[TimeControl "5400+30"]

1. e4 {[%emt 0:00:05]} c5 {[%emt 0:00:06]} 2. Nc3 {[%emt 0:00:09]} Nc6 {[%emt 0:00:10]} 3. f4 {[%emt 0:00:23]} e6 {[%emt 0:00:11]} 4. Nf3 {[%emt 0:00:17]} d5 {[%emt 0:00:12]} 5. Bb5 {[%emt 0:00:31]} Nf6 {[%emt 0:00:23]} 6. Bxc6+ {[%emt 0:00:21]} bxc6 {[%emt 0:00:08]} 7. d3 {[%emt 0:01:49]} c4 {[%emt 0:12:11]} 8. e5 {[%emt 0:04:37]} Nd7 {[%emt 0:01:48]} 9. dxc4 {[%emt 0:09:16]} Ba6 {[%emt 0:02:32]} 10. cxd5 {[%emt 0:05:04]} cxd5 {[%emt 0:01:18]} 11. Be3 {[%emt 0:02:22]} Rb8 {[%emt 0:04:33]} 12. Rb1 {[%emt 0:03:34]} h6 {[%emt 0:04:10]} 13. h4 {[%emt 0:11:09]} Nb6 {[%emt 0:05:35]} 14. b3 {[%emt 0:03:09]} Bb4 {[%emt 0:02:56]} 15. Qd4 {[%emt 0:02:37]} Nc4 {[%emt 0:07:32]} 16. Kf2 {[%emt 0:03:53]} Nxe3 {[%emt 0:01:14]} 17. Qxe3 {[%emt 0:02:20]} d4 {[%emt 0:11:51]} 18. Nxd4 {[%emt 0:05:02]} Bc5 {[%emt 0:00:32]} 19. Rbd1 {[%emt 0:01:19]} Rb4 {[%emt 0:02:33]} 20. Ne4 {[%emt 0:01:30]} Bxd4 {[%emt 0:02:02]} 21. Nd6+ {[%emt 0:03:16]} Qxd6 {[%emt 0:00:17]} 22. exd6 {[%emt 0:00:05]} Bxe3+ {[%emt 0:00:47]} 23. Kxe3 {[%emt 0:00:10]} Kd7 {[%emt 0:00:46]} 24. c4 {[%emt 0:02:13]} Rb6 {[%emt 0:05:03]} 25. c5 {[%emt 0:02:23]} Rb5 {[%emt 0:01:27]} 26. Rc1 {[%emt 0:01:58]} Rc8 {[%emt 0:00:36]} 27. Kd4 {[%emt 0:00:34]} Bb7 {[%emt 0:01:48]} 28. Rc2 {[%emt 0:01:38]} Bd5 {[%emt 0:04:41]} 29. Rb1 {[%emt 0:02:00]} Rb4+ {[%emt 0:00:42]} 30. Ke3 {[%emt 0:00:25]} Be4 {[%emt 0:01:05]} 31. c6+ {[%emt 0:01:11]} Rxc6 {[%emt 0:01:20]} 32. Rxc6 {[%emt 0:00:22]} Bxc6 {[%emt 0:26:01]} 0-1

[Event "Israel Youth-ch U12 2025"]
[Site "Rishon Le Zion"]
[Date "2025.04.04"]
[Round "1.3"]
[White "Belkovsky, Guy"]
[Black "Potikha, Shelley"]
[Result "1/2-1/2"]
[Annotator "NA"]
[ECO "C06"]
[WhiteElo "2067"]
[BlackElo "1615"]
[PlyCount "67"]
[EventDate "2025.04.03"]
[EventType "swiss"]
[EventCountry "ISR"]
[SourceTitle "playchess.com"]
[Source "ChessBase"]
[SourceQuality "1"]
[TimeControl "5400+30"]

1. e4 {[%emt 0:00:02]} e6 {[%emt 0:00:11]} 2. d4 {[%emt 0:00:05]} d5 {[%emt 0:00:04]} 3. Nd2 {[%emt 0:00:06]} Nf6 {[%emt 0:00:31]} 4. e5 {[%emt 0:00:06]} Nfd7 {[%emt 0:00:10]} 5. c3 {[%emt 0:00:05]} c5 {[%emt 0:00:09]} 6. Ngf3 {[%emt 0:00:07]} Nc6 {[%emt 0:00:21]} 7. Bd3 {[%emt 0:00:07]} cxd4 {[%emt 0:00:11]} 8. cxd4 {[%emt 0:00:07]} f6 {[%emt 0:00:11]} 9. exf6 {[%emt 0:00:14]} Nxf6 {[%emt 0:00:09]} 10. O-O {[%emt 0:00:14]} Bd6 {[%emt 0:01:48]} 11. Re1 {[%emt 0:00:19]} O-O {[%emt 0:00:56]} 12. b3 {[%emt 0:01:32]} Bd7 {[%emt 0:10:00]} 13. Bb2 {[%emt 0:02:41]} Qe7 {[%emt 0:17:40]} 14. Ne5 {[%emt 0:06:44]} Be8 {[%emt 0:03:05]} 15. Re3 {[%emt 0:10:56]} Bh5 {[%emt 0:06:18]} 16. Nxc6 {[%emt 0:00:29]} bxc6 {[%emt 0:00:46]} 17. Be2 {[%emt 0:00:14]} Bg6 {[%emt 0:05:27]} 18. Bf3 {[%emt 0:06:38]} Rae8 {[%emt 0:06:29]} 19. Re1 {[%emt 0:05:10]} Qc7 {[%emt 0:04:48]} 20. h3 {[%emt 0:01:59]} Qf7 {[%emt 0:07:57]} 21. Qe2 {[%emt 0:02:54]} Nh5 {[%emt 0:05:41]} 22. g3 {[%emt 0:02:17]} Nf4 {[%emt 0:15:39]} 23. gxf4 {[%emt 0:06:24]} Qxf4 {[%emt 0:00:47]} 24. Nf1 {[%emt 0:01:07]} Qxf3 {[%emt 0:01:27]} 25. Qxf3 {[%emt 0:00:04]} Rxf3 {[%emt 0:00:11]} 26. Rac1 {[%emt 0:01:59]} Bb4 {[%emt 0:08:22]} 27. Re3 {[%emt 0:01:22]} Rxe3 {[%emt 0:00:32]} 28. Nxe3 {[%emt 0:00:06]} Rc8 {[%emt 0:00:42]} 29. Ng4 {[%emt 0:03:17]} Bd2 {[%emt 0:02:23]} 30. Rc5 {[%emt 0:00:29]} Bb4 {[%emt 0:00:28]} 31. Rc1 {[%emt 0:00:06]} Bd2 {[%emt 0:00:10]} 32. Rd1 {[%emt 0:04:12]} Bf4 {[%emt 0:01:08]} 33. Re1 {[%emt 0:00:12]} Bf5 {[%emt 0:00:55]} 34. Kg2 {[%emt 0:03:09]} 1/2-1/2

[Event "Israel Youth-ch U12 2025"]
[Site "Rishon Le Zion"]
[Date "2025.04.04"]
[Round "1.4"]
[White "Shtewi, Hosni"]
[Black "Triger, Eitan"]
[Result "1/2-1/2"]
[Annotator "NA"]
[ECO "C52"]
[WhiteElo "1664"]
[BlackElo "1978"]
[PlyCount "131"]
[EventDate "2025.04.03"]
[EventType "swiss"]
[EventCountry "ISR"]
[SourceTitle "playchess.com"]
[Source "ChessBase"]
[SourceQuality "1"]
[TimeControl "5400+30"]

1. e4 {[%emt 0:00:03]} e5 {[%emt 0:00:06]} 2. Nf3 {[%emt 0:00:04]} Nc6 {[%emt 0:00:05]} 3. Bc4 {[%emt 0:00:04]} Bc5 {[%emt 0:00:03]} 4. b4 {[%emt 0:00:05]} Bxb4 {[%emt 0:00:39]} 5. c3 {[%emt 0:00:07]} Ba5 {[%emt 0:00:17]} 6. d4 {[%emt 0:00:06]} exd4 {[%emt 0:00:11]} 7. O-O {[%emt 0:00:07]} Nf6 {[%emt 0:01:33]} 8. e5 {[%emt 0:00:14]} Ne4 {[%emt 0:02:06]} 9. cxd4 {[%emt 0:01:13]} O-O {[%emt 0:01:03]} 10. Qc2 {[%emt 0:01:03]} d5 {[%emt 0:01:14]} 11. exd6 {[%emt 0:03:26]} Nxd6 {[%emt 0:00:23]} 12. Bd3 {[%emt 0:04:02]} h6 {[%emt 0:01:42]} 13. a3 {[%emt 0:01:48]} Ne7 {[%emt 0:21:45]} 14. Bb2 {[%emt 0:04:05]} Nd5 {[%emt 0:00:14]} 15. Bc3 {[%emt 0:04:34]} Bb6 {[%emt 0:00:58]} 16. Qd2 {[%emt 0:00:39]} c6 {[%emt 0:04:28]} 17. Ne5 {[%emt 0:05:54]} Bf5 {[%emt 0:04:26]} 18. Qc2 {[%emt 0:02:17]} Bxd3 {[%emt 0:01:54]} 19. Qxd3 {[%emt 0:00:18]} Nb5 {[%emt 0:02:41]} 20. Bb2 {[%emt 0:02:12]} Nxd4 {[%emt 0:04:47]} 21. Bxd4 {[%emt 0:01:41]} Nf4 {[%emt 0:00:16]} 22. Bxb6 {[%emt 0:00:47]} Qg5 {[%emt 0:05:39]} 23. Qe4 {[%emt 0:04:58]} axb6 {[%emt 0:02:36]} 24. g3 {[%emt 0:02:58]} Nd5 {[%emt 0:00:34]} 25. Nf3 {[%emt 0:05:02]} Qf6 {[%emt 0:02:25]} 26. Nbd2 {[%emt 0:00:33]} b5 {[%emt 0:02:52]} 27. Qd4 {[%emt 0:02:57]} Qf5 {[%emt 0:07:05]} 28. Rfe1 {[%emt 0:06:25]} Ra4 {[%emt 0:00:48]} 29. Qe5 {[%emt 0:00:41]} Qxe5 {[%emt 0:03:19]} 30. Nxe5 {[%emt 0:00:51]} Rfa8 {[%emt 0:00:40]} 31. Nd7 {[%emt 0:02:24]} g6 {[%emt 0:02:57]} 32. Nc5 {[%emt 0:01:17]} R4a7 {[%emt 0:00:45]} 33. Rec1 {[%emt 0:02:15]} b4 {[%emt 0:02:48]} 34. a4 {[%emt 0:00:44]} b6 {[%emt 0:00:43]} 35. Nd3 {[%emt 0:00:25]} c5 {[%emt 0:00:32]} 36. Nc4 {[%emt 0:01:53]} Rxa4 {[%emt 0:06:17]} 37. Rxa4 {[%emt 0:02:02]} Rxa4 {[%emt 0:00:04]} 38. Nxb6 {[%emt 0:01:21]} Nxb6 {[%emt 0:00:31]} 39. Nxc5 {[%emt 0:00:04]} Ra3 {[%emt 0:01:42]} 40. Rb1 {[%emt 0:00:51]} Nd5 {[%emt 0:00:10]} 41. Kf1 {[%emt 0:00:12]} Kf8 {[%emt 0:00:27]} 42. Ke1 {[%emt 0:00:13]} Ke7 {[%emt 0:00:53]} 43. Kd2 {[%emt 0:00:20]} Ra2+ {[%emt 0:02:11]} 44. Ke1 {[%emt 0:00:06]} Kd6 {[%emt 0:00:59]} 45. Nd3 {[%emt 0:00:09]} Ra4 {[%emt 0:00:18]} 46. Nb2 {[%emt 0:01:31]} Ra8 {[%emt 0:01:53]} 47. Nd3 {[%emt 0:00:18]} Rc8 {[%emt 0:00:22]} 48. Rb2 {[%emt 0:01:10]} Rc4 {[%emt 0:00:12]} 49. Kd2 {[%emt 0:00:27]} f6 {[%emt 0:00:05]} 50. Rc2 {[%emt 0:00:46]} Rxc2+ {[%emt 0:00:57]} 51. Kxc2 {[%emt 0:00:01]} Kc6 {[%emt 0:00:10]} 52. Kb3 {[%emt 0:00:09]} Kb5 {[%emt 0:00:05]} 53. f4 {[%emt 0:01:24]} h5 {[%emt 0:01:22]} 54. h3 {[%emt 0:00:34]} Ka5 {[%emt 0:02:54]} 55. Kc4 {[%emt 0:01:11]} Ne3+ {[%emt 0:00:39]} 56. Kb3 {[%emt 0:00:07]} Nf1 {[%emt 0:01:38]} 57. Nxb4 {[%emt 0:00:20]} Nxg3 {[%emt 0:00:06]} 58. Nd5 {[%emt 0:00:11]} Kb5 {[%emt 0:01:55]} 59. Nxf6 {[%emt 0:00:41]} Ne2 {[%emt 0:00:05]} 60. f5 {[%emt 0:01:02]} Nd4+ {[%emt 0:00:08]} 61. Kc3 {[%emt 0:00:04]} Nxf5 {[%emt 0:00:13]} 62. Kd3 {[%emt 0:00:57]} Kc5 {[%emt 0:00:29]} 63. Ke4 {[%emt 0:00:13]} Nd6+ {[%emt 0:02:00]} 64. Kf4 {[%emt 0:00:00]} Nf7 {[%emt 0:00:10]} 65. Nxh5 {[%emt 0:38:24]} gxh5 {[%emt 0:00:10]} 66. Kf5 {[%emt 0:00:00]} 1/2-1/2

[Event "Israel Youth-ch U12 2025"]
[Site "Rishon Le Zion"]
[Date "2025.04.06"]
[Round "2.1"]
[White "Venturero, Guy"]
[Black "Gurevich, Neria"]
[Result "0-1"]
[Annotator "NA"]
[ECO "B51"]
[WhiteElo "1485"]
[BlackElo "2048"]
[PlyCount "86"]
[EventDate "2025.04.03"]
[EventType "swiss"]
[EventCountry "ISR"]
[SourceTitle "playchess.com"]
[Source "ChessBase"]
[SourceQuality "1"]
[TimeControl "5400+30"]

1. e4 {[%emt 0:00:07]} c5 {[%emt 0:00:09]} 2. Nf3 {[%emt 0:00:29]} d6 {[%emt 0:00:24]} 3. Bb5+ {[%emt 0:01:03]} Nd7 {[%emt 0:00:27]} 4. d4 {[%emt 0:00:27]} cxd4 {[%emt 0:01:05]} 5. Nxd4 {[%emt 0:00:19]} a6 {[%emt 0:01:13]} 6. Be2 {[%emt 0:01:43]} Ngf6 {[%emt 0:01:02]} 7. Nc3 {[%emt 0:00:32]} e6 {[%emt 0:06:40]} 8. O-O {[%emt 0:00:46]} Be7 {[%emt 0:00:57]} 9. Be3 {[%emt 0:00:59]} Nc5 {[%emt 0:02:33]} 10. Bf3 {[%emt 0:00:56]} O-O {[%emt 0:02:19]} 11. Nb3 {[%emt 0:00:39]} Ncd7 {[%emt 0:06:42]} 12. Bf4 {[%emt 0:01:07]} Qc7 {[%emt 0:00:55]} 13. a4 {[%emt 0:00:52]} Ne5 {[%emt 0:01:11]} 14. a5 {[%emt 0:03:07]} Bd7 {[%emt 0:07:49]} 15. Bxe5 {[%emt 0:01:22]} dxe5 {[%emt 0:00:11]} 16. Qc1 {[%emt 0:00:51]} Rac8 {[%emt 0:05:57]} 17. Rd1 {[%emt 0:01:09]} Bb4 {[%emt 0:03:10]} 18. Rd3 {[%emt 0:04:04]} Bc6 {[%emt 0:01:47]} 19. Qe3 {[%emt 0:03:21]} Rfd8 {[%emt 0:03:13]} 20. Rad1 {[%emt 0:10:31]} Bxa5 {[%emt 0:04:44]} 21. Qc5 {[%emt 0:04:34]} Rxd3 {[%emt 0:02:48]} 22. cxd3 {[%emt 0:00:54]} Bxc3 {[%emt 0:07:18]} 23. bxc3 {[%emt 0:01:03]} Ba4 {[%emt 0:00:51]} 24. Qb4 {[%emt 0:00:40]} Bxb3 {[%emt 0:00:37]} 25. Qxb3 {[%emt 0:00:21]} Qxc3 {[%emt 0:00:33]} 26. Qxb7 {[%emt 0:00:17]} a5 {[%emt 0:00:16]} 27. h3 {[%emt 0:00:16]} a4 {[%emt 0:02:44]} 28. Kh2 {[%emt 0:00:08]} a3 {[%emt 0:01:13]} 29. Ra1 {[%emt 0:01:26]} Rf8 {[%emt 0:06:58]} 30. Ra2 {[%emt 0:01:25]} Qa5 {[%emt 0:01:42]} 31. Qb3 {[%emt 0:01:20]} Ra8 {[%emt 0:00:28]} 32. Qb7 {[%emt 0:00:39]} h6 {[%emt 0:01:07]} 33. Qb3 {[%emt 0:00:26]} Nd7 {[%emt 0:01:53]} 34. Be2 {[%emt 0:01:08]} Nc5 {[%emt 0:00:57]} 35. Qc2 {[%emt 0:01:11]} Na6 {[%emt 0:01:01]} 36. Qb1 {[%emt 0:03:09]} Nb4 {[%emt 0:04:13]} 37. Ra1 {[%emt 0:00:12]} a2 {[%emt 0:00:40]} 38. Qb3 {[%emt 0:00:18]} Qa3 {[%emt 0:00:35]} 39. Bd1 {[%emt 0:00:51]} Nxd3 {[%emt 0:01:15]} 40. Qb7 {[%emt 0:00:36]} Ra7 {[%emt 0:02:48]} 41. Qb5 {[%emt 0:00:25]} Kh7 {[%emt 0:02:59]} 42. Be2 {[%emt 0:01:07]} Qc3 {[%emt 0:01:11]} 43. Rf1 {[%emt 0:01:29]} Nf4 {[%emt 0:00:32]} 0-1

[Event "Israel Youth-ch U12 2025"]
[Site "Rishon Le Zion"]
[Date "2025.04.06"]
[Round "2.2"]
[White "Sason, Noam"]
[Black "Grechin, Yan"]
[Result "1-0"]
[Annotator "NA"]
[ECO "A05"]
[WhiteElo "2075"]
[BlackElo "1693"]
[PlyCount "57"]
[EventDate "2025.04.03"]
[EventType "swiss"]
[EventCountry "ISR"]
[SourceTitle "playchess.com"]
[Source "ChessBase"]
[SourceQuality "1"]
[TimeControl "5400+30"]

1. Nf3 {[%emt 0:00:02]} Nf6 {[%emt 0:18:12]} 2. g3 {[%emt 0:00:10]} g6 {[%emt 0:00:27]} 3. Bg2 {[%emt 0:00:06]} Bg7 {[%emt 0:00:14]} 4. O-O {[%emt 0:00:10]} O-O {[%emt 0:00:14]} 5. d3 {[%emt 0:00:30]} d6 {[%emt 0:00:15]} 6. e4 {[%emt 0:02:28]} e5 {[%emt 0:00:42]} 7. b4 {[%emt 0:02:23]} Nbd7 {[%emt 0:05:17]} 8. c4 {[%emt 0:04:07]} c6 {[%emt 0:00:55]} 9. Nc3 {[%emt 0:02:35]} a5 {[%emt 0:04:54]} 10. b5 {[%emt 0:04:29]} Nc5 {[%emt 0:01:57]} 11. Be3 {[%emt 0:20:29]} Nfd7 {[%emt 0:08:08]} 12. bxc6 {[%emt 0:05:07]} bxc6 {[%emt 0:00:10]} 13. d4 {[%emt 0:00:25]} Ne6 {[%emt 0:05:18]} 14. d5 {[%emt 0:03:52]} cxd5 {[%emt 0:01:37]} 15. Qxd5 {[%emt 0:00:43]} Ba6 {[%emt 0:14:56]} 16. Qxd6 {[%emt 0:03:42]} Bxc4 {[%emt 0:00:29]} 17. Rfd1 {[%emt 0:00:17]} Nf6 {[%emt 0:01:10]} 18. Qa3 {[%emt 0:05:14]} Qe8 {[%emt 0:07:04]} 19. Nxe5 {[%emt 0:05:48]} Nxe4 {[%emt 0:05:33]} 20. Nxe4 {[%emt 0:37:53]} Bxe5 {[%emt 0:00:26]} 21. Rac1 {[%emt 0:00:00]} Qb5 {[%emt 0:07:22]} 22. Rb1 {[%emt 0:00:00]} Qa6 {[%emt 0:01:24]} 23. Rb6 {[%emt 0:00:00]} Qc8 {[%emt 0:01:36]} 24. f4 {[%emt 0:00:00]} Rd8 {[%emt 0:02:41]} 25. Rc1 {[%emt 0:00:00]} Bd4 {[%emt 0:01:30]} 26. Nd6 {[%emt 0:00:00]} Qc5 {[%emt 0:02:16]} 27. Qxc5 {[%emt 0:00:00]} Bxc5 {[%emt 0:01:33]} 28. Bxc5 {[%emt 0:00:00]} Nxc5 {[%emt 0:00:22]} 29. Bxa8 {[%emt 0:00:00]} 1-0

[Event "Israel Youth-ch U12 2025"]
[Site "Rishon Le Zion"]
[Date "2025.04.06"]
[Round "2.3"]
[White "Freifeld, Daniel"]
[Black "Jakobs, Yoav"]
[Result "0-1"]
[Annotator "NA"]
[ECO "B51"]
[WhiteElo "1585"]
[BlackElo "1850"]
[PlyCount "56"]
[EventDate "2025.04.03"]
[EventType "swiss"]
[EventCountry "ISR"]
[SourceTitle "playchess.com"]
[Source "ChessBase"]
[SourceQuality "1"]
[TimeControl "5400+30"]

1. e4 {[%emt 0:00:04]} c5 {[%emt 0:00:05]} 2. Nf3 {[%emt 0:00:16]} d6 {[%emt 0:00:05]} 3. Bb5+ {[%emt 0:00:38]} Nd7 {[%emt 0:00:16]} 4. c4 {[%emt 0:00:37]} Ngf6 {[%emt 1:32:04]} 5. Nc3 {[%emt 0:00:49]} g6 {[%emt 0:00:00]} 6. d3 {[%emt 0:01:04]} Bg7 {[%emt 0:00:00]} 7. h3 {[%emt 0:01:00]} O-O {[%emt 0:00:00]} 8. O-O {[%emt 0:01:21]} a6 {[%emt 0:00:00]} 9. Ba4 {[%emt 0:02:20]} Ne8 {[%emt 0:00:00]} 10. Qe2 {[%emt 0:04:41]} Nc7 {[%emt 0:00:00]} 11. Be3 {[%emt 0:01:42]} b5 {[%emt 0:00:00]} 12. cxb5 {[%emt 0:03:34]} Nb6 {[%emt 0:00:00]} 13. Bb3 {[%emt 0:09:14]} axb5 {[%emt 0:00:00]} 14. d4 {[%emt 0:02:23]} b4 {[%emt 0:00:00]} 15. dxc5 {[%emt 0:04:41]} Ba6 {[%emt 0:00:00]} 16. Qc2 {[%emt 0:01:19]} bxc3 {[%emt 0:00:00]} 17. cxb6 {[%emt 0:01:20]} Nb5 {[%emt 0:00:00]} 18. bxc3 {[%emt 0:15:36]} Nxc3 {[%emt 0:00:00]} 19. Rfe1 {[%emt 0:02:02]} Ne2+ {[%emt 0:00:00]} 20. Kh1 {[%emt 0:00:33]} Bxa1 {[%emt 0:00:00]} 21. Rxa1 {[%emt 0:00:09]} e5 {[%emt 0:00:00]} 22. b7 {[%emt 0:02:17]} Rb8 {[%emt 0:00:00]} 23. Bh6 {[%emt 0:03:16]} Qb6 {[%emt 0:00:00]} 24. Bxf8 {[%emt 0:03:05]} Rxf8 {[%emt 0:00:00]} 25. Ng5 {[%emt 0:02:03]} Qxf2 {[%emt 0:00:00]} 26. Bxf7+ {[%emt 0:02:56]} Kh8 {[%emt 0:00:00]} 27. Qc8 {[%emt 0:00:11]} Rxc8 {[%emt 0:00:00]} 28. bxc8=Q+ {[%emt 0:00:29]} Bxc8 {[%emt 0:00:00]} 0-1

[Event "Israel Youth-ch U12 2025"]
[Site "Rishon Le Zion"]
[Date "2025.04.06"]
[Round "2.4"]
[White "Zakin, Lior"]
[Black "Roth, Elai"]
[Result "1-0"]
[Annotator "NA"]
[ECO "B45"]
[WhiteElo "1819"]
[BlackElo "1727"]
[PlyCount "47"]
[EventDate "2025.04.03"]
[EventType "swiss"]
[EventCountry "ISR"]
[SourceTitle "playchess.com"]
[Source "ChessBase"]
[SourceQuality "1"]
[TimeControl "5400+30"]

1. e4 {[%emt 0:00:01]} c5 {[%emt 0:00:06]} 2. Nf3 {[%emt 0:00:04]} e6 {[%emt 0:00:04]} 3. d4 {[%emt 0:00:04]} cxd4 {[%emt 0:00:05]} 4. Nxd4 {[%emt 0:00:07]} Nf6 {[%emt 0:00:07]} 5. Nc3 {[%emt 0:00:05]} Nc6 {[%emt 0:00:04]} 6. Bf4 {[%emt 0:00:07]} Bb4 {[%emt 0:00:53]} 7. Ndb5 {[%emt 0:00:12]} e5 {[%emt 0:01:36]} 8. Bg5 {[%emt 0:00:07]} a6 {[%emt 0:03:07]} 9. Nd6+ {[%emt 0:00:18]} Ke7 {[%emt 0:00:34]} 10. Bxf6+ {[%emt 0:03:30]} gxf6 {[%emt 0:01:41]} 11. Nf5+ {[%emt 0:00:10]} Ke8 {[%emt 0:02:11]} 12. Bc4 {[%emt 0:01:15]} d6 {[%emt 0:04:50]} 13. Qh5 {[%emt 0:00:50]} Rf8 {[%emt 0:12:58]} 14. Ng7+ {[%emt 0:07:34]} Ke7 {[%emt 0:02:11]} 15. O-O {[%emt 0:07:17]} Bxc3 {[%emt 0:02:25]} 16. bxc3 {[%emt 0:00:11]} Qc7 {[%emt 0:07:14]} 17. Rab1 {[%emt 0:02:04]} Nd8 {[%emt 0:03:16]} 18. Bd5 {[%emt 0:01:10]} Be6 {[%emt 0:03:43]} 19. Rfd1 {[%emt 0:01:55]} Rh8 {[%emt 0:04:37]} 20. Rd3 {[%emt 0:04:06]} Rb8 {[%emt 0:07:02]} 21. Qh6 {[%emt 0:02:30]} Bxd5 {[%emt 0:11:39]} 22. Nf5+ {[%emt 0:00:28]} Ke8 {[%emt 0:03:21]} 23. Qxf6 {[%emt 0:00:16]} Bxe4 {[%emt 0:01:20]} 24. Nxd6+ {[%emt 0:00:11]} 1-0

[Event "Israel Youth-ch U12 2025"]
[Site "Rishon Le Zion"]
[Date "2025.04.07"]
[Round "4.1"]
[White "Sason, Noam"]
[Black "Jakobs, Yoav"]
[Result "1-0"]
[Annotator "NA RC"]
[ECO "B23"]
[WhiteElo "2075"]
[BlackElo "1850"]
[PlyCount "47"]
[EventDate "2025.04.03"]
[EventType "swiss"]
[EventCountry "ISR"]
[SourceTitle "playchess.com"]
[Source "ChessBase"]
[SourceQuality "1"]
[TimeControl "5400+30"]

1. e4 {[%emt 0:00:02]} c5 {[%emt 0:00:06]} 2. Nc3 {[%emt 0:00:06]} a6 {[%emt 0:00:06]} 3. Nge2 {[%emt 0:00:04]} b5 {[%emt 0:00:27]} 4. g3 {[%emt 0:00:25]} Bb7 {[%emt 0:00:05]} 5. Bg2 {[%emt 0:00:34]} Nf6 {[%emt 0:00:22]} 6. Nd5 {[%emt 0:00:31]} Nxd5 {[%emt 0:01:29]} 7. exd5 {[%emt 0:00:08]} d6 {[%emt 0:01:36]} 8. d4 {[%emt 0:01:38]} cxd4 {[%emt 0:02:22]} 9. Nxd4 {[%emt 0:01:42]} Qc7 {[%emt 0:01:25]} 10. O-O {[%emt 0:02:40]} g6 {[%emt 0:03:48]} 11. Re1 {[%emt 0:02:05]} h6 {[%emt 0:01:22]} 12. a4 {[%emt 0:03:25]} bxa4 {[%emt 0:00:24]} 13. Rxa4 {[%emt 0:03:09]} Bg7 {[%emt 0:02:02]} 14. Qe2 {[%emt 0:05:36]} O-O {[%emt 0:02:39]} 15. Rc4 {[%emt 0:06:45]} Qb6 {[%emt 0:05:39]} 16. Nc6 {[%emt 0:02:59]} Nd7 {[%emt 0:03:03]} 17. Be3 {[%emt 0:02:39]} Qb5 {[%emt 0:01:03]} 18. Nxe7+ {[%emt 0:01:29]} Kh7 {[%emt 0:00:58]} 19. Rc7 {[%emt 0:00:57]} Qxb2 {[%emt 0:01:57]} 20. Rxd7 {[%emt 0:00:37]} Bc8 {[%emt 0:00:24]} 21. Nxc8 {[%emt 0:00:52]} Raxc8 {[%emt 0:00:14]} 22. Be4 {[%emt 0:04:01]} Rcd8 {[%emt 0:00:27]} 23. Rxd8 {[%emt 0:00:44]} Rxd8 {[%emt 0:00:01]} 24. Qxa6 {[%emt 0:00:45]} 1-0

[Event "Israel Youth-ch U12 2025"]
[Site "Rishon Le Zion"]
[Date "2025.04.07"]
[Round "4.2"]
[White "Landa, Uri Aharon"]
[Black "Gurevich, Neria"]
[Result "0-1"]
[Annotator "RC"]
[ECO "B51"]
[WhiteElo "1588"]
[BlackElo "2048"]
[PlyCount "120"]
[EventDate "2025.04.03"]
[EventType "swiss"]
[EventCountry "ISR"]
[SourceTitle "playchess.com"]
[Source "ChessBase"]
[SourceQuality "1"]
[TimeControl "5400+30"]

1. e4 {[%emt 0:00:07]} c5 {[%emt 0:00:06]} 2. Nf3 {[%emt 0:00:11]} d6 {[%emt 0:00:13]} 3. Bb5+ {[%emt 0:00:15]} Nd7 {[%emt 0:00:16]} 4. d4 {[%emt 0:00:25]} cxd4 {[%emt 0:00:44]} 5. Qxd4 {[%emt 0:01:00]} a6 {[%emt 0:00:57]} 6. Bxd7+ {[%emt 0:00:22]} Bxd7 {[%emt 0:00:24]} 7. c4 {[%emt 0:00:27]} Bc6 {[%emt 0:07:05]} 8. Nc3 {[%emt 0:02:48]} e5 {[%emt 0:07:08]} 9. Qd3 {[%emt 0:01:41]} Be7 {[%emt 0:03:47]} 10. O-O {[%emt 0:05:35]} h6 {[%emt 0:05:26]} 11. Be3 {[%emt 0:06:25]} Nf6 {[%emt 0:02:55]} 12. h3 {[%emt 0:02:14]} O-O {[%emt 0:04:38]} 13. Rfd1 {[%emt 0:07:48]} b5 {[%emt 0:07:28]} 14. Nd5 {[%emt 0:06:26]} Nxd5 {[%emt 0:02:27]} 15. cxd5 {[%emt 0:06:55]} Bd7 {[%emt 0:00:32]} 16. g4 {[%emt 0:55:51]} Qc8 {[%emt 0:07:49]} 17. Rac1 {[%emt 0:00:00]} Qb7 {[%emt 0:00:34]} 18. Rc2 {[%emt 0:00:00]} Rfc8 {[%emt 0:02:01]} 19. Rdc1 {[%emt 0:00:00]} Rxc2 {[%emt 0:05:34]} 20. Rxc2 {[%emt 0:00:00]} Rc8 {[%emt 0:02:12]} 21. Kg2 {[%emt 0:00:00]} Kh7 {[%emt 0:11:51]} 22. Nd2 {[%emt 0:00:00]} a5 {[%emt 0:03:27]} 23. Nb3 {[%emt 0:00:00]} Bd8 {[%emt 0:02:45]} 24. Bd2 {[%emt 0:00:00]} b4 {[%emt 0:02:41]} 25. Rxc8 {[%emt 0:00:00]} Qxc8 {[%emt 0:00:11]} 26. a3 {[%emt 0:00:00]} bxa3 {[%emt 0:02:37]} 27. bxa3 {[%emt 0:00:00]} a4 {[%emt 0:00:32]} 28. Na5 {[%emt 0:00:00]} Bb6 {[%emt 0:01:46]} 29. Bb4 {[%emt 0:01:07]} Qc7 {[%emt 0:01:37]} 30. Nc6 {[%emt 0:01:41]} Bxc6 {[%emt 0:00:28]} 31. dxc6 {[%emt 0:00:11]} Qxc6 {[%emt 0:00:10]} 32. Bxd6 {[%emt 0:00:28]} Bd4 {[%emt 0:00:59]} 33. Bb4 {[%emt 0:00:54]} Qe6 {[%emt 0:02:41]} 34. Qf3 {[%emt 0:01:25]} g6 {[%emt 0:06:25]} 35. Kf1 {[%emt 0:02:16]} Kg7 {[%emt 0:00:28]} 36. Kg2 {[%emt 0:00:50]} Qb3 {[%emt 0:01:38]} 37. Be7 {[%emt 0:00:40]} Qe6 {[%emt 0:01:00]} 38. Bb4 {[%emt 0:00:11]} Qc6 {[%emt 0:01:10]} 39. Kf1 {[%emt 0:01:09]} Bc5 {[%emt 0:01:10]} 40. Qc3 {[%emt 0:00:36]} Qb5+ {[%emt 0:00:41]} 41. Ke1 {[%emt 0:00:24]} Bxb4 {[%emt 0:00:45]} 42. axb4 {[%emt 0:00:06]} Kh7 {[%emt 0:00:49]} 43. f3 {[%emt 0:00:54]} Qb6 {[%emt 0:01:13]} 44. Ke2 {[%emt 0:00:29]} Qa6+ {[%emt 0:01:07]} 45. Kd2 {[%emt 0:00:31]} Qf1 {[%emt 0:01:15]} 46. Qxe5 {[%emt 0:00:35]} Qxf3 {[%emt 0:00:53]} 47. Qa1 {[%emt 0:00:30]} a3 {[%emt 0:00:37]} 48. b5 {[%emt 0:00:26]} Qf2+ {[%emt 0:00:24]} 49. Kd3 {[%emt 0:00:22]} Qf3+ {[%emt 0:00:38]} 50. Kc4 {[%emt 0:00:42]} Qxe4+ {[%emt 0:00:13]} 51. Kc5 {[%emt 0:00:26]} Qc2+ {[%emt 0:00:23]} 52. Kd6 {[%emt 0:00:33]} Qb2 {[%emt 0:00:17]} 53. Qf1 {[%emt 0:00:21]} Kg7 {[%emt 0:00:13]} 54. Ke7 {[%emt 0:00:39]} Qe5+ {[%emt 0:00:09]} 55. Kd7 {[%emt 0:00:30]} a2 {[%emt 0:00:10]} 56. b6 {[%emt 0:00:23]} a1=Q {[%emt 0:00:05]} 57. Qxa1 {[%emt 0:00:07]} Qxa1 {[%emt 0:00:08]} 58. b7 {[%emt 0:00:07]} Qb2 {[%emt 0:00:14]} 59. Kc8 {[%emt 0:00:07]} Kf6 {[%emt 0:00:50]} 60. b8=Q {[%emt 0:00:07]} Qxb8+ {[%emt 0:00:07]} 0-1